fUST/lending_fUST_20250916
["ID","MTS","AMOUNT","RATE_DAILY","PERIOD"]
[385709086,1757982645590,-587.0,0.00025966,2]
[385709088,1757982645600,-1500.0,0.00025968,2]
[385709090,1757982645609,-1000.0,0.00025968,2]
[385709091,1757982645618,-1500.0,0.00025968,2]
[385709093,1757982645626,-500.0,0.00025968,2]
[385709095,1757982645635,-501.4159058,0.00025968,2]
[385709097,1757982645644,-1500.0,0.00025968,2]
[385709099,1757982645653,-1500.0,0.00025968,2]
[385709101,1757982645662,-683.36758378,0.00025968,2]
[385709103,1757982645671,-943.13928742,0.00025968,2]
[385709105,1757982645680,-1500.0,0.00025968,2]
[385709107,1757982645690,-1500.0,0.00025968,2]
[385709109,1757982645699,-1500.0,0.00025968,2]
[385709111,1757982645709,-1500.0,0.00025968,2]
[385709113,1757982645718,-197.0,0.00025969,2]
[385709115,1757982645727,-936.85,0.00025978,3]
[385709117,1757982645737,-1192.65,0.00025978,3]
[385709119,1757982645747,-586.26,0.00025978,3]
[385709121,1757982645756,-1185.96,0.00025979,3]
[385709123,1757982645765,-37414.70540317,0.00026,10]
[385709125,1757982645775,-2125.15,0.00026,7]
[385709127,1757982645784,-160.0,0.00026,10]
[385709129,1757982645793,-847.45018724,0.00026,10]
[385709131,1757982645802,-217.82061966,0.00026,10]
[385709133,1757982645810,-160.0,0.00026,10]
[385709135,1757982645819,-531.33695587,0.00026,10]
[385709137,1757982645828,-160.0,0.00026004,6]
[385709139,1757982645838,-1298.23,0.00026027,4]
[385709141,1757982645846,-500.0,0.00026028,2]
[385709143,1757982645855,-3063.003,0.00026146,2]
[385709145,1757982645864,-500.462,0.00026146,2]
[385709147,1757982645874,-160.0,0.00026173,7]
[385709149,1757982645883,-162.92310633,0.00026173,5]
[385709151,1757982645893,-739.0,0.00026209,2]
[385709153,1757982645902,-660.0,0.0002625,2]
[385709155,1757982645911,-936.85,0.00026252,3]
[385709157,1757982645920,-1192.65,0.00026252,3]
[385709159,1757982645929,-586.26,0.00026252,3]
[385709161,1757982645939,-1185.96,0.00026253,3]
[385709163,1757982645948,-500.0,0.00026302,2]
[385709164,1757982645957,-800.0,0.00026486,2]
[385709166,1757982645966,-151.0,0.00026499,5]
[385709168,1757982645976,-2000.0,0.00026516,2]
[385709170,1757982645985,-2000.0,0.00026516,2]
[385709172,1757982645995,-1176.5428236,0.00026516,2]
[385709174,1757982646004,-2000.0,0.00026516,2]
[385709176,1757982646014,-1503.89780759,0.00026516,2]
[385709178,1757982646023,-2000.0,0.00026516,2]
[385709180,1757982646032,-500.42689119,0.00026516,2]
[385709183,1757982646041,-800.0,0.00026519,2]
[385709186,1757982646051,-936.85,0.00026526,3]
[385709189,1757982646060,-1192.65,0.00026526,3]
[385709192,1757982646070,-586.26,0.00026526,3]
[385709194,1757982646079,-1185.96,0.00026527,3]
[385709196,1757982646089,-157.0,0.00026576,2]
[385709198,1757982646098,-760.0,0.00026798,2]
[385709200,1757982646107,-936.85,0.000268,3]
[385709202,1757982646117,-1192.65,0.000268,3]
[385709204,1757982646126,-586.26,0.000268,3]
[385709206,1757982646135,-1185.96,0.00026801,3]
[385709208,1757982646144,-3625.78574387,0.000269,2]
[385709210,1757982646153,-3338.78198534,0.0002698,2]
[385709212,1757982646162,-800.0,0.0002698,2]
[385709214,1757982646171,-282062.97922507,0.00027,2]
[385709216,1757982646181,-20262.73,0.00027,7]
[385709218,1757982646192,-705.64686085,0.00027001,2]
[385709220,1757982646202,-151.0,0.00027028,5]
[385709222,1757982646212,-1500.0,0.00027064,2]
[385709224,1757982646221,-2500.0,0.00027064,2]
[385709226,1757982646230,-238.76576404,0.00027064,2]
[385709228,1757982646242,-2500.0,0.00027064,2]
[385709230,1757982646251,-936.85,0.00027073,3]
[385709232,1757982646260,-1192.65,0.00027073,3]
[385709234,1757982646269,-586.26,0.00027073,3]
[385709236,1757982646278,-1185.96,0.00027075,3]
[385709238,1757982646287,-1001.8487855,0.00027123,3]
[385709240,1757982646297,-2125.15,0.000272,7]
[385709242,1757982646308,-762.02414734,0.00027246,2]
[385709244,1757982646316,-3625.78574381,0.00027257,2]
[385709246,1757982646326,-800.0,0.00027259,2]
[385709248,1757982646336,-860.0,0.00027346,2]
[385709250,1757982646350,-936.85,0.00027347,3]
[385709252,1757982646359,-1192.65,0.00027347,3]
[385709254,1757982646369,-586.26,0.00027347,3]
[385709256,1757982646379,-1185.96,0.00027349,3]
[385709257,1757982646390,-154.21971903,0.00027397,2]
[385709258,1757982646399,-1500.0,0.00027397,2]
[385709259,1757982646409,-154.78,0.00027445,15]
[385709260,1757982646420,-3892.9158728,0.00027454,2]
[385709261,1757982646429,-1070.9393853,0.00027454,2]
[385709262,1757982646438,-635.72,0.00027484,15]
[385709263,1757982646447,-2038.0828981,0.00027513,2]
[385709264,1757982646458,-3104.8538341,0.00027533,2]
[385709265,1757982646468,-166.13416733,0.00027543,2]
[385709266,1757982646477,-154.78,0.00027545,15]
[385709267,1757982646486,-151.0,0.00027556,6]
[385709268,1757982646495,-635.72,0.00027584,15]
[385709269,1757982646504,-3000.0,0.00027612,5]
[385709270,1757982646514,-3000.0,0.00027612,5]
[385709271,1757982646523,-3625.78574381,0.00027613,2]
[385709272,1757982646532,-936.85,0.00027621,3]
[385709273,1757982646541,-1192.65,0.00027621,3]
[385709274,1757982646550,-586.26,0.00027621,3]
[385709276,1757982646562,-1185.96,0.00027623,3]
[385709277,1757982646571,-154.78,0.00027645,15]
[385709278,1757982646581,-635.72,0.00027684,15]
[385709280,1757982646591,-500.85,0.000277,10]
[385709282,1757982646600,-500.0,0.000277,10]
[385709284,1757982646609,-154.78,0.00027745,15]
[385709286,1757982646619,-635.72,0.00027784,15]
[385709288,1757982646628,-154.78,0.00027845,15]
[385709290,1757982646637,-635.72,0.00027884,15]
[385709292,1757982646646,-960.0,0.00027894,2]
[385709294,1757982646655,-936.85,0.00027895,3]
[385709296,1757982646664,-1192.65,0.00027895,3]
[385709298,1757982646674,-586.26,0.00027895,3]
[385709309,1757982646766,-1185.96,0.00027897,3]
[385709311,1757982646776,-720.0,0.00027937,20]
[385709313,1757982646785,-154.79926457,0.00027945,15]
[385709315,1757982646795,-3625.78574381,0.0002797,2]
[385709317,1757982646805,-635.72,0.00027984,15]
[385709319,1757982646814,-500.0,0.00028,2]
[385709320,1757982646823,-20262.73,0.00028,7]
[385709322,1757982646832,-500.0,0.00028,10]
[385709324,1757982646841,-156.76195927,0.00028,7]
[385709326,1757982646851,-328.0,0.00028,7]
[385709328,1757982646860,-150.0,0.00028,10]
[385709330,1757982646869,-500.98179676,0.00028,10]
[385709332,1757982646878,-705.64686085,0.00028037,2]
[385709334,1757982646888,-635.72,0.00028084,15]
[385709336,1757982646898,-151.0,0.00028085,6]
[385709338,1757982646908,-649.0,0.000281,2]
[385709340,1757982646917,-3500.0,0.0002816,5]
[385709342,1757982646927,-3000.0,0.0002816,5]
[385709344,1757982646936,-936.85,0.00028169,3]
[385709346,1757982646946,-1192.65,0.00028169,3]
[385709348,1757982646955,-586.26,0.00028169,3]
[385709350,1757982646964,-1185.96,0.00028171,3]
[385709352,1757982646974,-635.72,0.00028184,15]
[385709354,1757982646983,-868.6269421,0.00028192,2]
[385709356,1757982646993,-169.2755825,0.00028192,2]
[385709358,1757982647002,-238.9588765,0.00028192,2]
[385709360,1757982647012,-823.0,0.00028217,2]
[385709362,1757982647021,-454.7577634,0.00028219,2]
[385709364,1757982647032,-692.7865332,0.0002824,2]
[385709366,1757982647042,-500.0,0.00028268,2]
[385709368,1757982647051,-635.72,0.00028284,15]
[385709370,1757982647061,-500.0,0.00028292,2]
[385709372,1757982647070,-309.0,0.00028295,120]
[385709374,1757982647081,-500.0,0.00028296,2]
[385709376,1757982647090,-2125.15,0.000283,7]
[385709378,1757982647100,-3625.78574381,0.00028326,2]
[385709380,1757982647108,-500.0,0.00028339,2]
[385709382,1757982647118,-977.0,0.00028359,2]
[385709384,1757982647127,-634.0,0.00028359,2]
[385709386,1757982647136,-2156.0,0.00028359,2]
[385709388,1757982647145,-635.72,0.00028384,15]
[385709390,1757982647157,-1060.0,0.00028442,2]
[385709392,1757982647167,-936.85,0.00028443,3]
[385709394,1757982647176,-1192.65,0.00028443,3]
[385709396,1757982647185,-586.26,0.00028443,3]
[385709398,1757982647195,-1185.96,0.00028445,3]
[385709400,1757982647204,-635.72,0.00028484,15]
[385709402,1757982647214,-500.0,0.00028484,2]
[385709404,1757982647223,-500.0,0.00028509,2]
[385709406,1757982647233,-500.0,0.00028545,2]
[385709408,1757982647242,-500.0,0.00028552,2]
[385709410,1757982647251,-500.0,0.00028571,2]
[385709412,1757982647260,-500.0,0.00028583,2]
[385709414,1757982647269,-635.72,0.00028584,15]
[385709416,1757982647278,-500.0,0.00028607,2]
[385709418,1757982647287,-151.0,0.00028614,6]
[385709420,1757982647296,-3625.78574381,0.00028683,2]
[385709422,1757982647307,-635.72,0.00028684,15]
[385709424,1757982647316,-4000.0,0.00028708,5]
[385709426,1757982647336,-936.85,0.00028717,3]
[385709428,1757982647346,-1192.65,0.00028717,3]
[385709430,1757982647355,-586.26,0.00028717,3]
[385709432,1757982647365,-1185.96,0.00028719,3]
[385709434,1757982647378,-500.0,0.00028722,2]
[385709436,1757982647390,-338.58908814,0.00028765,90]
[385709438,1757982647400,-1298.23,0.00028767,6]
[385709440,1757982647410,-500.0,0.00028783,2]
[385709442,1757982647419,-635.72,0.00028784,15]
[385709444,1757982647430,-500.0,0.0002879,2]
[385709446,1757982647439,-844.39596656,0.00028812,2]
[385709448,1757982647448,-1256.67526549,0.00028815,2]
[385709450,1757982647459,-500.0,0.00028867,2]
[385709452,1757982647468,-635.72,0.00028884,15]
[385709454,1757982647477,-150.0,0.00028884,2]
[385709456,1757982647486,-150.0,0.00028884,2]
[385709458,1757982647496,-150.0,0.00028884,2]
[385709460,1757982647505,-150.0,0.00028884,2]
[385709462,1757982647514,-150.0,0.00028884,2]
[385709464,1757982647523,-150.0,0.00028884,2]
[385709466,1757982647533,-150.0,0.00028884,2]
[385709468,1757982647543,-1256.67526549,0.00028915,2]
[385709470,1757982647552,-635.72,0.00028984,15]
[385709472,1757982647562,-1160.0,0.0002899,2]
[385709474,1757982647571,-936.85,0.00028991,3]
[385709476,1757982647580,-1192.65,0.00028991,3]
[385709478,1757982647589,-586.26,0.00028991,3]
[385709480,1757982647598,-1185.96,0.00028993,3]
[385709482,1757982647608,-10716.85724574,0.00029,3]
[385709484,1757982647617,-20262.73,0.00029,7]
[385709486,1757982647626,-160.0,0.00029,10]
[385709488,1757982647635,-531.33695587,0.00029,10]
[385709490,1757982647645,-1256.67526549,0.00029015,2]
[385709491,1757982647653,-3625.78574381,0.00029039,2]
[385709493,1757982647663,-3000.0,0.0002904,7]
[385709495,1757982647672,-705.64686085,0.00029073,2]
[385709497,1757982647681,-635.72,0.00029084,15]
[385709499,1757982647690,-200.0,0.00029098,120]
[385709501,1757982647699,-1256.67526549,0.00029115,2]
[385709504,1757982647713,-500.0,0.00029137,2]
[385709506,1757982647723,-151.0,0.00029143,7]
[385709508,1757982647732,-500.0,0.00029155,2]
[385709510,1757982647742,-635.72,0.00029184,15]
[385709512,1757982647751,-500.0,0.00029209,2]
[385709514,1757982647759,-1256.67526549,0.00029215,2]
[385709516,1757982647769,-500.0,0.0002923,5]
[385709518,1757982647778,-500.0,0.0002923,20]
[385709520,1757982647788,-500.0,0.0002923,5]
[385709522,1757982647797,-500.0,0.0002923,20]
[385709524,1757982647806,-500.0,0.0002923,20]
[385709526,1757982647815,-405.94601652,0.0002923,5]
[385709527,1757982647824,-4500.0,0.00029256,5]
[385709530,1757982647836,-936.97843419,0.00029265,3]
[385709532,1757982647845,-1192.70330855,0.00029265,3]
[385709534,1757982647855,-586.37394641,0.00029265,3]
[385709536,1757982647864,-1186.14063193,0.00029267,3]
[385709538,1757982647872,-635.72,0.00029284,15]
[385709540,1757982647882,-293.85068442,0.00029294,2]
[385709542,1757982647891,-500.0,0.00029296,2]
[385709544,1757982647901,-200.0,0.000293,120]
[385709546,1757982647913,-1256.67526549,0.00029315,2]
[385709548,1757982647922,-500.0,0.00029323,2]
[385709550,1757982647932,-500.0,0.00029344,2]
[385709552,1757982647942,-635.72,0.00029384,15]
[385709554,1757982647951,-3625.78574381,0.00029396,2]
[385709556,1757982647960,-2125.15,0.000294,7]
[385709558,1757982647969,-500.0,0.00029412,2]
[385709560,1757982647978,-1256.67526549,0.00029415,2]
[385709561,1757982647987,-500.0,0.00029419,2]
[385709563,1757982647997,-200.0,0.0002945,120]
[385709565,1757982648006,-500.0,0.00029462,2]
[385709567,1757982648015,-635.72,0.00029484,15]
[385709569,1757982648024,-200.0,0.00029485,120]
[385709571,1757982648033,-1770.80469144,0.000295,120]
[385709573,1757982648043,-926.0,0.000295,2]
[385709575,1757982648052,-2000.0,0.000295,2]
[385709577,1757982648062,-1256.67526549,0.00029515,2]
[385709579,1757982648071,-1260.0,0.00029538,2]
[385709581,1757982648081,-500.0,0.00029571,2]
[385709583,1757982648091,-500.0,0.00029581,2]
[385709585,1757982648101,-635.72,0.00029584,15]
[385709587,1757982648110,-500.0,0.00029596,2]
[385709589,1757982648119,-1256.67526549,0.00029615,2]
[385709590,1757982648128,-151.0,0.00029671,7]
[385709592,1757982648137,-635.72,0.00029684,15]
[385709594,1757982648147,-154.0,0.000297,120]
[385709596,1757982648156,-500.0,0.00029703,2]
[385709598,1757982648165,-500.0,0.00029704,2]
[385709600,1757982648174,-309.0,0.00029709,120]
[385709602,1757982648184,-500.0,0.00029711,2]
[385709604,1757982648193,-500.0,0.00029742,2]
[385709606,1757982648202,-3625.78574381,0.00029752,2]
[385709608,1757982648212,-500.0,0.00029759,2]
[385709610,1757982648221,-635.72,0.00029784,15]
[385709612,1757982648230,-158.773915,0.00029794,5]
[385709614,1757982648239,-86207.10803541,0.000298,7]
[385709616,1757982648247,-5000.0,0.00029804,5]
[385709618,1757982648256,-3000.0,0.00029862,7]
[385709620,1757982648265,-500.0,0.00029881,2]
[385709622,1757982648274,-635.72,0.00029884,15]
[385709624,1757982648284,-500.0,0.00029888,2]
[385709626,1757982648292,-200.0,0.00029897,120]
[385709628,1757982648302,-500.0,0.00029917,2]
[385709630,1757982648312,-500.0,0.00029921,2]
[385709632,1757982648321,-635.72,0.00029984,15]
[385709634,1757982648330,-544.77658351,0.00029998,120]
[385709635,1757982648339,-404.39670164,0.0003,10]
[385709637,1757982648349,-316.58120987,0.0003,60]
[385709639,1757982648358,-1117.58880736,0.0003,50]
[385709641,1757982648367,-1571.59283616,0.0003,10]
[385709643,1757982648377,-300.94619728,0.0003,50]
[385709645,1757982648390,-165.46,0.0003,5]
[385709647,1757982648399,-191.554,0.0003,2]
[385709649,1757982648408,-20262.73,0.0003,7]
[385709651,1757982648418,-207.517,0.0003,2]
[385709653,1757982648428,-1500.0,0.0003,2]
[385709655,1757982648438,-4000.0,0.0003,4]
[385709657,1757982648447,-500.0,0.00030033,7]
[385709659,1757982648457,-512.05480042,0.00030035,7]
[385709661,1757982648467,-500.0,0.00030036,7]
[385709663,1757982648476,-158.773915,0.0003008,2]
[385709665,1757982648485,-635.72,0.00030084,15]
[385709667,1757982648495,-158.773915,0.00030086,50]
[385709669,1757982648504,-1360.0,0.00030086,2]
[385709671,1757982648514,-243.89,0.00030094,2]
[385709673,1757982648523,-500.0,0.00030096,7]
[385709675,1757982648532,-7206.82202163,0.00030109,2]
[385709677,1757982648541,-705.64686085,0.00030109,2]
[385709679,1757982648551,-3625.78574381,0.00030109,2]
[385709681,1757982648561,-966.45,0.0003012,7]
[385709682,1757982648570,-858.55146552,0.0003013,15]
[385709684,1757982648579,-284.48353277,0.0003013,2]
[385709686,1757982648588,-500.0,0.00030145,7]
[385709688,1757982648598,-155.0303743,0.0003015,120]
[385709690,1757982648607,-500.0,0.00030168,7]
[385709692,1757982648616,-507.3948074,0.00030172,7]
[385709694,1757982648625,-550.09048527,0.00030181,7]
[385709696,1757982648634,-635.72,0.00030184,15]
[385709698,1757982648644,-957.62439508,0.000302,2]
[385709700,1757982648653,-151.0,0.000302,7]
[385709702,1757982648662,-264867.3558075,0.000302,30]
[385709709,1757982648716,-151.863386,0.00025706,2]
[385709711,1757982648725,-151.863386,0.00026357,2]
[385709713,1757982648734,-151.863386,0.00027009,2]
[385709714,1757982648743,-151.863386,0.0002925,30]
[385709716,1757982648752,-151.863386,0.00029361,30]
[385709718,1757982648761,-151.863386,0.00029472,30]
[385709720,1757982648771,-30.00404973,0.00029583,30]
[385709723,1757982648782,-121.85933627,0.00029583,30]
[385709724,1757982648791,-151.863386,0.00029694,30]
[385709726,1757982648800,-11634.80158204,0.000302,30]
[385710801,1757982838131,1000.0,0.00028,30]
[385710802,1757982891685,175.46,0.00028,30]
[385710803,1757982964492,177.89,0.00028,30]
[385710804,1757983102382,158.13,0.00028,30]
[385710806,1757983428855,796.86,0.00028,30]
[385710807,1757983484867,610.0,0.00027767,120]
[385710808,1757983629125,-631.8051421,0.00021119,2]
[385710809,1757983629148,-312.73,0.00021548,2]
[385710810,1757983629170,-82.299684,0.00021985,2]
[385710812,1757983764601,159.0,0.00028,30]
[385710813,1757983793588,159.0,0.00028,30]
[385710814,1757983806496,159.21,0.00028,30]
[385710846,1757983832215,-648.0,0.00021985,2]
[385710848,1757983832224,-300.0,0.00021985,2]
[385710850,1757983832233,-300.0,0.00021985,2]
[385710852,1757983832243,-300.0,0.00021985,2]
[385710854,1757983832252,-300.0,0.00021985,2]
[385710856,1757983832261,-300.0,0.00021985,2]
[385710858,1757983832270,-1200.0,0.00021985,2]
[385710860,1757983832279,-465.09751842,0.00021989,2]
[385710862,1757983832288,-1000.0,0.00022,7]
[385710864,1757983832297,-374.95,0.00022,2]
[385710866,1757983832306,-9569.34,0.00022262,2]
[385710868,1757983832315,-480.0,0.00022262,3]
[385710870,1757983832325,-500.0,0.00022302,2]
[385710872,1757983832334,-500.0,0.00022302,2]
[385710874,1757983832344,-500.0,0.00022302,2]
[385710876,1757983832353,-283.32380286,0.00022302,2]
[385710878,1757983832363,-163.47840259,0.00022302,2]
[385710880,1757983832372,-480.0,0.00022302,3]
[385710882,1757983832381,-480.0,0.00022302,3]
[385710884,1757983832392,-480.0,0.00022302,3]
[385710887,1757983832402,-14550.95572614,0.00022303,2]
[385710889,1757983832412,-480.0,0.00022536,3]
[385710891,1757983832422,-480.0,0.00022536,3]
[385710893,1757983832431,-480.0,0.00022536,3]
[385710894,1757983832446,-480.0,0.00022536,3]
[385710897,1757983832456,-480.0,0.00022576,3]
[385710899,1757983832465,-480.0,0.00022576,3]
[385710900,1757983832479,-480.0,0.00022576,3]
[385710901,1757983832488,-4087.37839591,0.00022773,2]
[385710902,1757983832498,-1446.75826715,0.00022773,2]
[385710903,1757983832507,-322.23679718,0.00022773,2]
[385710904,1757983832517,-480.0,0.0002281,3]
[385710905,1757983832527,-480.0,0.0002281,3]
[385710906,1757983832536,-480.0,0.0002281,3]
[385710907,1757983832546,-480.0,0.0002281,3]
[385710908,1757983832555,-160.0,0.00022811,3]
[385710909,1757983832565,-417.15472785,0.00022811,3]
[385710910,1757983832575,-480.0,0.0002285,3]
[385710911,1757983832583,-480.0,0.0002285,3]
[385710912,1757983832593,-25.53999624,0.0002285,3]
[385710913,1757983832605,-254.53425329,0.0002285,3]
[385710921,1757983837905,-480.0,0.00022262,3]
[385710922,1757983837914,-480.0,0.00022536,3]
[385710923,1757983837923,-480.0,0.0002281,3]
[385710924,1757983837933,-199.92575047,0.0002285,3]
[385710925,1757983837942,-151.0,0.00022852,2]
[385710926,1757983837950,-500.0,0.00022856,3]
[385710927,1757983837959,-461.3,0.00022856,3]
[385710928,1757983837969,-230.65,0.00022856,3]
[385710929,1757983837978,-691.95,0.00022856,3]
[385710930,1757983837987,-616.96,0.00022863,3]
[385710931,1757983837996,-341.38367344,0.00022865,2]
[385710932,1757983838005,-414.92285483,0.00022865,2]
[385710933,1757983838015,-213.9751048,0.00022865,2]
[385710934,1757983838024,-222.8513676,0.00022865,2]
[385710935,1757983838033,-370000.0,0.00022866,2]
[385710936,1757983838042,-500.0,0.00022873,2]
[385710937,1757983838051,-500.0,0.00022873,2]
[385710938,1757983838060,-500.0,0.00022873,2]
[385710939,1757983838070,-554.91676656,0.00022873,2]
[385710940,1757983838079,-485.04805454,0.00022873,2]
[385710941,1757983838087,-500.76948217,0.00022873,2]
[385710942,1757983838097,-504.09211214,0.00022873,2]
[385710943,1757983838105,-500.0,0.00022873,2]
[385710944,1757983838114,-500.0,0.00022873,2]
[385710945,1757983838123,-500.0,0.00022873,2]
[385710946,1757983838132,-313.3833243,0.00022873,2]
[385710947,1757983838142,-500.0,0.00022873,2]
[385710948,1757983838152,-500.0,0.00022873,2]
[385710949,1757983838161,-500.0,0.00022873,2]
[385710950,1757983838170,-150.0,0.00022873,2]
[385710951,1757983838179,-500.0,0.00022873,2]
[385710952,1757983838188,-500.0,0.00022873,2]
[385710953,1757983838197,-170.00163542,0.00022873,2]
[385710954,1757983838206,-500.0,0.00022873,2]
[385710955,1757983838216,-500.58297378,0.00022873,2]
[385710956,1757983838227,-500.0,0.00022873,2]
[385710957,1757983838236,-500.0,0.00022873,2]
[385710958,1757983838246,-500.0,0.00022873,2]
[385710959,1757983838255,-500.0,0.00022873,2]
[385710960,1757983838264,-500.0,0.00022873,2]
[385710961,1757983838273,-500.0,0.00022873,2]
[385710962,1757983838282,-500.0,0.00022873,2]
[385710963,1757983838292,-10104.7,0.000229,7]
[385710964,1757983838301,-1272.76,0.000229,7]
[385710965,1757983838310,-160.0,0.000229,7]
[385710966,1757983838319,-417.15472785,0.000229,7]
[385710967,1757983838328,-260.35086254,0.00022907,2]
[385710968,1757983838338,-847.45018724,0.00023,3]
[385710969,1757983838347,-300.0,0.0002301,2]
[385710970,1757983838356,-480.0,0.00023084,3]
[385710971,1757983838366,-480.0,0.00023084,3]
[385710972,1757983838375,-480.0,0.00023084,3]
[385710973,1757983838384,-480.0,0.00023084,3]
[385710974,1757983838393,-480.0,0.00023124,3]
[385710975,1757983838402,-480.0,0.00023124,3]
[385710976,1757983838412,-480.0,0.00023124,3]
[385710977,1757983838421,-616.96,0.00023137,3]
[385710978,1757983838430,-450.0,0.00023147,2]
[385710979,1757983838439,-374.34899434,0.00023211,2]
[385710980,1757983838449,-233.24851325,0.00023238,3]
[385710981,1757983838458,-368.31269636,0.00023284,2]
[385710982,1757983838467,-1245.58,0.00023287,2]
[385710983,1757983838476,-1446.75826714,0.00023301,2]
[385710984,1757983838485,-600.0,0.00023322,20]
[385710985,1757983838494,-480.0,0.00023358,3]
[385710986,1757983838503,-480.0,0.00023358,3]
[385710987,1757983838512,-480.0,0.00023358,3]
[385710988,1757983838521,-480.0,0.00023358,3]
[385710989,1757983838530,-500.0,0.00023373,2]
[385710990,1757983838539,-521.81528428,0.00023373,2]
[385710991,1757983838548,-198.67021969,0.00023398,3]
[385710992,1757983838558,-480.0,0.00023398,3]
[385710993,1757983838567,-480.0,0.00023398,3]
[385710994,1757983838577,-616.96,0.00023411,3]
[385710995,1757983838586,-1000.85652594,0.00023421,2]
[385710996,1757983838595,-1000.0,0.00023421,2]
[385710997,1757983838605,-1000.0,0.00023421,2]
[385710998,1757983838614,-1000.0,0.00023421,2]
[385710999,1757983838624,-1000.0,0.00023421,2]
[385711000,1757983838633,-1000.0,0.00023421,2]
[385711001,1757983838643,-1000.0,0.00023421,2]
[385711002,1757983838652,-1000.0,0.00023421,2]
[385711003,1757983838661,-1000.0,0.00023421,2]
[385711004,1757983838670,-1000.0,0.00023421,2]
[385711005,1757983838680,-1000.0,0.00023421,2]
[385711006,1757983838689,-1000.0,0.00023421,2]
[385711007,1757983838698,-500.0,0.00023421,2]
[385711008,1757983838707,-1000.0,0.00023421,2]
[385711009,1757983838717,-1000.0,0.00023421,2]
[385711010,1757983838726,-364.04709073,0.00023421,2]
[385711011,1757983838734,-366.43304849,0.00023478,2]
[385711012,1757983838743,-480.0,0.00023632,3]
[385711013,1757983838752,-480.0,0.00023632,3]
[385711014,1757983838761,-480.0,0.00023632,3]
[385711015,1757983838771,-157.56,0.00023632,3]
[385711016,1757983838780,-480.0,0.00023672,3]
[385711017,1757983838793,-480.0,0.00023672,3]
[385711018,1757983838807,-616.96,0.00023685,3]
[385711019,1757983838818,-1446.75826714,0.00023829,2]
[385711020,1757983838828,-300.89952072,0.00023886,2]
[385711021,1757983838837,-420.0,0.00023891,2]
[385711022,1757983838846,-420.0,0.00023891,2]
[385711023,1757983838855,-480.0,0.00023906,3]
[385711024,1757983838864,-480.0,0.00023906,3]
[385711025,1757983838873,-480.0,0.00023906,3]
[385711026,1757983838883,-302.0,0.00023926,2]
[385711027,1757983838893,-480.0,0.00023946,3]
[385711028,1757983838902,-500.0,0.00023952,2]
[385711029,1757983838911,-500.52912716,0.00023952,2]
[385711030,1757983838920,-501.26629294,0.00023952,2]
[385711031,1757983838930,-616.96,0.00023959,3]
[385711032,1757983838939,-1500.0,0.00023968,2]
[385711033,1757983838948,-1500.0,0.00023968,2]
[385711034,1757983838956,-1500.0,0.00023968,2]
[385711035,1757983838965,-1500.0,0.00023968,2]
[385711036,1757983838975,-1500.0,0.00023968,2]
[385711037,1757983838983,-1500.0,0.00023968,2]
[385711038,1757983838992,-1500.0,0.00023968,2]
[385711039,1757983839001,-250.69111597,0.00023968,2]
[385711040,1757983839010,-1509.92163713,0.00023968,2]
[385711041,1757983839019,-1500.0,0.00023968,2]